bitfinex/quotes_BTCUSD_20251208
["timestamp","ask_amount","ask_price","bid_price","bid_amount"]
[1765197328140,0.01012304,91806.0,91804.0,0.22874812]
[1765197328399,0.22873864,91808.0,91804.0,0.22874812]
[1765197328400,0.06252299,91808.0,91806.0,0.22874118]
[1765197328581,0.06252299,91808.0,91807.0,0.21784831]
[1765197328761,0.07264699,91808.0,91807.0,0.21784831]
[1765197329184,0.07264699,91808.0,91807.0,0.21918646]
[1765197329784,0.07264699,91808.0,91807.0,0.00133815]
[1765197330094,0.07664699,91808.0,91807.0,0.00133815]
[1765197330291,0.29449292,91808.0,91807.0,0.00133815]
[1765197330998,0.07664699,91808.0,91807.0,0.00133815]
[1765197331643,0.07664699,91808.0,91807.0,0.21918646]
[1765197331859,0.07864699,91808.0,91807.0,0.21918646]
[1765197332946,0.07864699,91808.0,91807.0,0.00133815]
[1765197333203,0.016124,91808.0,91807.0,0.25966646]
[1765197333438,0.006,91808.0,91807.0,0.28185846]
[1765197334355,0.01089051,91823.0,91816.0,0.21782695]
[1765197334562,0.01014821,91822.0,91816.0,0.23426695]
[1765197334779,0.06252299,91823.0,91821.0,0.22870584]
[1765197334988,0.01014832,91822.0,91821.0,0.24514584]
[1765197335197,0.01014832,91822.0,91821.0,0.25089784]
[1765197335597,0.01014832,91822.0,91821.0,0.24514584]
[1765197336863,0.01714832,91822.0,91821.0,0.24614584]
[1765197337078,0.02014832,91822.0,91821.0,0.24614584]
[1765197337873,0.02014832,91822.0,91821.0,0.001]
[1765197339584,0.02014832,91822.0,91821.0,0.21881509]
[1765197339759,0.02014832,91822.0,91821.0,0.21893205]
[1765197340287,0.02014832,91822.0,91821.0,0.21986279]
[1765197341091,0.01,91822.0,91821.0,0.21986279]
[1765197341301,0.22781272,91822.0,91821.0,0.0020477]
[1765197341494,0.01,91822.0,91821.0,0.0020477]
[1765197342434,0.22781272,91822.0,91821.0,0.0020477]
[1765197342776,0.01,91822.0,91821.0,0.0020477]
[1765197343198,0.01,91822.0,91821.0,0.21986279]
[1765197343444,0.01,91822.0,91821.0,0.0020477]
[1765197343844,0.01,91822.0,91821.0,0.21986279]
[1765197344421,0.01,91822.0,91821.0,0.0020477]
[1765197344929,0.01,91822.0,91821.0,0.21986279]
[1765197345149,0.01,91822.0,91821.0,0.23507279]
[1765197345901,0.01,91822.0,91821.0,0.21986279]
[1765197346108,0.01,91822.0,91821.0,0.23507279]
[1765197346310,0.01,91822.0,91821.0,0.28128479]
[1765197347153,0.007,91822.0,91821.0,0.28128479]
[1765197348092,0.01088873,91838.0,91835.0,0.22866923]
[1765197348265,0.01088862,91839.0,91836.0,0.01088897]
[1765197348479,0.21777563,91838.0,91836.0,0.01088897]
[1765197348665,0.22866436,91838.0,91835.0,0.01088909]
[1765197349165,0.22866436,91838.0,91834.0,0.22977403]
[1765197349166,0.21777725,91837.0,91834.0,0.22977403]
[1765197349485,0.21777952,91836.0,91834.0,0.22977403]
[1765197349785,0.2286661,91837.0,91835.0,0.21778178]
[1765197350113,0.2286661,91837.0,91835.0,0.21878178]
[1765197350494,0.2296661,91837.0,91835.0,0.001]
[1765197351149,0.21777952,91836.0,91835.0,0.001]
[1765197351358,0.01088897,91836.0,91833.0,0.21778663]
[1765197351554,0.01588897,91836.0,91834.0,0.001]
[1765197352157,0.21778203,91835.0,91834.0,0.001]
[1765197352383,0.21778203,91835.0,91832.0,0.22867833]
[1765197353170,0.22966864,91836.0,91833.0,0.21778651]
[1765197353533,0.005,91835.0,91834.0,0.002]
[1765197353710,0.22278189,91835.0,91834.0,0.002]
[1765197353919,0.006,91835.0,91834.0,0.00255255]
[1765197354489,0.001,91835.0,91834.0,0.00055255]
[1765197354690,0.21878189,91835.0,91834.0,0.00055255]
[1765197354887,0.006,91835.0,91834.0,0.00055255]
[1765197355096,0.22866997,91836.0,91834.0,0.00055255]
[1765197355281,0.001,91835.0,91833.0,0.21778538]
[1765197355480,0.006,91835.0,91834.0,0.002]
[1765197355682,0.006,91835.0,91834.0,0.23499426]
[1765197355899,0.001,91835.0,91834.0,0.23299426]
[1765197356236,0.005,91836.0,91835.0,0.21778033]
[1765197356448,0.006,91836.0,91835.0,0.21778033]
[1765197356643,0.001,91836.0,91835.0,0.21778033]
[1765197356844,0.001,91836.0,91832.0,0.01088945]
[1765197356845,0.22867098,91835.0,91832.0,0.01088945]
[1765197356993,0.00161286,91836.0,91833.0,0.01088933]
[1765197357403,0.23028162,91836.0,91833.0,0.2286713]
[1765197357596,0.00161286,91836.0,91833.0,0.2286713]
[1765197357851,0.005,91835.0,91834.0,0.002]
[1765197358229,0.005,91835.0,91834.0,0.24698359]
[1765197358408,0.001,91835.0,91834.0,0.26900359]
[1765197358959,0.001,91835.0,91834.0,0.24498359]
[1765197359769,0.006,91835.0,91834.0,0.24698359]
[1765197360201,0.22539475,91835.0,91834.0,0.002]
[1765197361887,0.00761286,91835.0,91834.0,0.002]
[1765197362063,0.22539475,91835.0,91834.0,0.002]
[1765197362268,0.22539475,91835.0,91834.0,0.00255255]
[1765197364391,0.34770067,91835.0,91834.0,0.00255255]
[1765197364604,0.36989666,91835.0,91834.0,0.00255255]
[1765197365012,0.69289666,91835.0,91834.0,0.00255255]
[1765197365229,0.70204221,91835.0,91834.0,0.00255255]
[1765197365672,0.70004221,91835.0,91834.0,0.00055255]
[1765197365878,0.3025317,91822.0,91798.0,0.01089348]
[1765197366170,0.65287725,91822.0,91798.0,0.01089348]
[1765197366379,0.65287725,91822.0,91821.0,0.00049512]
[1765197366680,0.97287725,91822.0,91821.0,0.00049512]
[1765197367061,0.95068126,91822.0,91821.0,0.00049512]
[1765197368034,0.95568126,91822.0,91821.0,0.00049512]
[1765197368481,0.95768126,91822.0,91821.0,0.00049512]
[1765197370823,0.95768126,91822.0,91794.0,0.01089395]
[1765197370824,0.01089395,91794.0,91789.0,0.01089455]
[1765197371032,0.01089431,91791.0,91777.0,0.09308056]
[1765197371238,0.01089502,91785.0,91778.0,0.22925515]
[1765197371406,0.01089455,91789.0,91785.0,0.01089502]
[1765197371615,0.01089455,91789.0,91786.0,0.21789723]
[1765197371820,0.60461613,91790.0,91786.0,0.22879213]
[1765197372033,0.22878324,91790.0,91789.0,0.001]
[1765197372338,0.21988689,91791.0,91789.0,0.001]
[1765197372562,0.21788689,91791.0,91787.0,0.01089478]
[1765197372762,0.21788689,91791.0,91785.0,0.01089502]
[1765197372763,0.29130934,91789.0,91785.0,0.01089502]
[1765197372912,0.06252299,91787.0,91784.0,0.22879661]
[1765197373316,0.06252299,91787.0,91785.0,0.21789994]
[1765197373519,0.06252299,91788.0,91785.0,0.22879496]
[1765197373751,0.002,91789.0,91788.0,0.2178934]
[1765197374108,0.002,91789.0,91786.0,0.0108949]
[1765197374268,0.004,91789.0,91787.0,0.21789578]
[1765197374600,0.06252299,91792.0,91789.0,0.2287839]
[1765197374815,0.06252299,91792.0,91790.0,0.21788781]
[1765197374975,0.00161286,91792.0,91790.0,0.21788781]
[1765197376195,0.07972299,91791.0,91790.0,0.21788781]
[1765197376605,0.06252299,91791.0,91790.0,0.21788781]
[1765197376805,0.06252299,91791.0,91790.0,0.21878992]
[1765197377176,0.06252299,91791.0,91790.0,0.00090211]
[1765197377927,0.06452299,91791.0,91790.0,0.00090211]
[1765197378257,0.06952299,91791.0,91790.0,0.00090211]
[1765197379731,0.007,91791.0,91790.0,0.00090211]
[1765197380561,0.00661286,91791.0,91790.0,0.00090211]
[1765197380778,0.07013585,91791.0,91790.0,0.00090211]
[1765197380982,0.06513585,91791.0,91790.0,0.00090211]
[1765197381183,0.06813585,91791.0,91790.0,0.00090211]
[1765197381405,0.06813585,91791.0,91790.0,0.21879076]
[1765197382161,0.06813585,91791.0,91790.0,0.00090211]
[1765197382365,0.06813585,91791.0,91790.0,0.21879076]
[1765197382752,0.06813585,91791.0,91790.0,0.00090211]
[1765197383460,0.28602213,91791.0,91790.0,0.00090211]
[1765197384039,0.36758682,91791.0,91790.0,0.00090211]
[1765197384248,0.30821812,91791.0,91790.0,0.00090211]
[1765197384954,0.28502213,91791.0,91790.0,0.00090211]
[1765197385122,0.28202213,91791.0,91790.0,0.00090211]
[1765197385319,0.29002213,91791.0,91790.0,0.00090211]
[1765197386095,0.29302213,91791.0,91790.0,0.00090211]
[1765197386738,0.31022213,91791.0,91790.0,0.00090211]
[1765197387536,0.63022213,91791.0,91790.0,0.00090211]
[1765197388946,0.65241812,91791.0,91790.0,0.00090211]
[1765197389361,0.63022213,91791.0,91790.0,0.00090211]
[1765197389559,0.61302213,91791.0,91790.0,0.00090211]
[1765197389807,0.63022213,91791.0,91790.0,0.00090211]
[1765197390902,0.65241812,91791.0,91790.0,0.00090211]
[1765197391058,0.65241812,91791.0,91790.0,0.0010191]
[1765197391306,0.65241812,91791.0,91753.0,0.01089882]
[1765197391307,0.22885563,91761.0,91753.0,0.01089882]
[1765197391487,0.46055187,91763.0,91757.0,0.01089835]
[1765197391692,0.06252299,91759.0,91757.0,0.21796589]
[1765197391894,0.06252299,91766.0,91764.0,0.21794995]
[1765197392055,0.06252299,91766.0,91765.0,0.21794801]
[1765197392459,0.01724,91771.0,91769.0,0.01089692]
[1765197392775,0.07341944,91773.0,91770.0,0.22883164]
[1765197393172,0.06252299,91773.0,91771.0,0.21793292]
[1765197393373,0.06252299,91774.0,91772.0,0.22882795]
[1765197393720,0.01724,91775.0,91773.0,0.21792902]
[1765197393914,0.0108955,91781.0,91778.0,0.01089585]
[1765197394096,0.06252299,91780.0,91778.0,0.01089585]
[1765197394264,0.06252299,91780.0,91778.0,0.22881292]
[1765197394464,0.06252299,91780.0,91779.0,0.21791477]
[1765197394702,0.06252299,91780.0,91776.0,0.22881598]
[1765197394903,0.28043588,91780.0,91775.0,0.21792307]
[1765197395106,0.01089585,91778.0,91775.0,0.22882046]
[1765197395513,0.22881317,91778.0,91773.0,0.22882398]
[1765197395713,0.22881317,91778.0,91775.0,0.01089621]
[1765197395954,0.01089585,91778.0,91776.0,0.21792189]
[1765197396154,0.29133363,91779.0,91775.0,0.01089621]
[1765197396424,0.21791952,91777.0,91774.0,0.22882292]
[1765197396625,0.01089621,91775.0,91765.0,0.0233474]
[1765197396829,0.01089597,91777.0,91772.0,0.01089656]
[1765197397132,0.22981326,91778.0,91776.0,0.00040754]
[1765197397333,0.21791952,91777.0,91774.0,0.22882296]
[1765197397600,0.22881549,91777.0,91774.0,0.22882248]
[1765197397775,0.22881658,91777.0,91774.0,0.22882248]
[1765197398177,0.22881658,91777.0,91775.0,0.21792422]
[1765197398381,0.006,91778.0,91776.0,0.21792189]
[1765197398533,0.06252299,91779.0,91777.0,0.21791952]
[1765197398741,0.005,91777.0,91776.0,0.2288157]
[1765197399158,0.29133464,91779.0,91776.0,0.2288157]
[1765197399364,0.001,91777.0,91776.0,0.01089609]
[1765197399772,0.001,91777.0,91776.0,0.22881798]
[1765197399940,0.29133464,91779.0,91776.0,0.22881798]
[1765197400157,0.001,91777.0,91774.0,0.01089633]
[1765197400364,0.22391952,91777.0,91774.0,0.22882205]
[1765197400862,0.21791952,91777.0,91774.0,0.22882205]
[1765197401179,0.21791952,91777.0,91775.0,0.21792412]
[1765197401358,0.22881309,91778.0,91775.0,0.21792412]
[1765197401769,0.005,91777.0,91775.0,0.21792412]
[1765197401975,0.21791957,91777.0,91775.0,0.21792412]
[1765197402360,0.005,91777.0,91775.0,0.21792412]
[1765197402577,0.22291968,91777.0,91775.0,0.21792412]
[1765197402779,0.005,91777.0,91775.0,0.21792412]
[1765197403030,0.006,91777.0,91776.0,0.00040754]
[1765197403169,0.22391952,91777.0,91776.0,0.00040754]
[1765197403572,0.006,91777.0,91776.0,0.00040754]
[1765197404009,0.22291952,91777.0,91776.0,0.00040754]
[1765197404197,0.21791952,91777.0,91776.0,0.00040754]
[1765197404398,0.22391952,91777.0,91776.0,0.00040754]
[1765197404806,0.006,91777.0,91776.0,0.25701943]
[1765197405218,0.007,91777.0,91776.0,0.25701943]
[1765197405426,0.007,91777.0,91776.0,0.27921143]
[1765197405867,0.006,91777.0,91776.0,0.25701943]
[1765197406418,0.006,91777.0,91776.0,0.25901943]
[1765197406831,0.06413585,91791.0,91790.0,0.21788865]
[1765197407042,0.00161286,91791.0,91790.0,0.21788865]
[1765197407260,0.00161286,91791.0,91790.0,0.23389865]
[1765197408036,0.00161286,91791.0,91790.0,0.23428835]
[1765197408206,0.21786184,91802.0,91797.0,0.0108936]
[1765197408408,0.01724,91799.0,91798.0,0.21786962]
[1765197408607,0.09065635,91799.0,91796.0,0.01089372]
[1765197408867,0.30852507,91799.0,91796.0,0.22876734]
[1765197409080,0.30852507,91799.0,91797.0,0.21787182]
[1765197409276,0.01089348,91798.0,91795.0,0.22877055]
[1765197409501,0.30852507,91799.0,91796.0,0.01089372]
[1765197409844,0.30952507,91799.0,91796.0,0.01089372]
[1765197410232,0.01089372,91796.0,91793.0,0.01089407]
[1765197410439,0.01089372,91796.0,91792.0,0.01089419]
[1765197410646,0.01089372,91796.0,91793.0,0.22877421]
[1765197410817,0.22876822,91796.0,91793.0,0.22877421]
[1765197411019,0.01089383,91795.0,91790.0,0.01128413]
[1765197411220,0.28040215,91794.0,91790.0,0.22917255]
[1765197411595,0.06252299,91792.0,91790.0,0.22917094]
[1765197411798,0.06252299,91792.0,91790.0,0.22917133]
[1765197412602,0.07341694,91794.0,91791.0,0.2178859]
[1765197412822,0.29129631,91794.0,91791.0,0.2178859]
[1765197413027,0.29129631,91794.0,91792.0,0.21788377]
[1765197413222,0.06252299,91792.0,91790.0,0.0003897]
[1765197413440,0.06252299,91792.0,91790.0,0.21827763]
[1765197413693,0.06252299,91793.0,91791.0,0.21788411]
[1765197414226,0.06252299,91793.0,91792.0,0.21888391]
[1765197414427,0.22877075,91795.0,91792.0,0.21788391]
[1765197414833,0.06252299,91794.0,91792.0,0.21788391]
[1765197415032,0.06252299,91794.0,91791.0,0.22877842]
[1765197415033,0.06252299,91795.0,91794.0,0.21787766]
[1765197415233,0.06252299,91795.0,91793.0,0.2287756]
[1765197415591,0.06252299,91796.0,91794.0,0.21787841]
[1765197415744,0.06252299,91798.0,91796.0,0.01089372]
[1765197415947,0.06252299,91798.0,91797.0,0.21787171]
[1765197416995,0.28038441,91802.0,91799.0,0.22876028]
[1765197417176,0.06252299,91800.0,91799.0,0.22876028]
[1765197417543,0.06252299,91802.0,91799.0,0.22876028]
[1765197417740,0.07341599,91802.0,91799.0,0.22876028]
[1765197417940,0.06252299,91802.0,91800.0,0.21786283]
[1765197419278,0.06452299,91802.0,91800.0,0.21786283]
[1765197419811,0.002,91802.0,91801.0,0.22948255]
[1765197420200,0.009,91802.0,91801.0,0.21786255]
[1765197420840,0.002,91802.0,91801.0,0.21786255]
[1765197421043,0.009,91802.0,91795.0,0.01089383]
[1765197421241,0.01089289,91803.0,91794.0,0.01089395]
[1765197421242,0.21786967,91798.0,91794.0,0.22876836]
[1765197421608,0.22876315,91798.0,91795.0,0.22876832]
[1765197421782,0.21786758,91799.0,91796.0,0.22876715]
[1765197422374,0.21787031,91798.0,91796.0,0.01089372]
[1765197422576,0.22876094,91799.0,91795.0,0.22876832]
[1765197422990,0.010893,91802.0,91797.0,0.0108936]
[1765197423168,0.010893,91802.0,91796.0,0.01089372]
[1765197423169,0.07341564,91805.0,91799.0,0.02251336]
[1765197423366,0.06252299,91805.0,91802.0,0.010893]
[1765197423589,0.06252299,91805.0,91803.0,0.21785714]
[1765197424601,0.005,91805.0,91804.0,0.23286543]
[1765197424936,0.005,91805.0,91804.0,0.25711543]
[1765197425142,0.005,91805.0,91804.0,0.23286543]
[1765197425545,0.006,91805.0,91804.0,0.23286543]
[1765197425740,0.001,91805.0,91804.0,0.27930743]
[1765197425966,0.00101052,91809.0,91808.0,0.21784593]
[1765197427153,0.00101052,91809.0,91808.0,0.21884593]
[1765197427411,0.00801052,91809.0,91808.0,0.21884593]
[1765197427938,0.00901052,91809.0,91808.0,0.21884593]
[1765197434420,0.00901052,91809.0,91808.0,0.25729593]
[1765197434779,0.00901052,91809.0,91808.0,0.01651]
[1765197434983,0.00801052,91809.0,91808.0,0.001]
[1765197435181,0.00801052,91809.0,91808.0,0.21884593]
[1765197435386,0.00801052,91809.0,91808.0,0.21984593]
[1765197435615,0.00101052,91809.0,91808.0,0.21884593]
[1765197435855,0.00501052,91809.0,91808.0,0.21984593]
[1765197436334,0.22285408,91809.0,91808.0,0.002]
[1765197436533,0.00501052,91809.0,91808.0,0.002]
[1765197436731,0.22285408,91809.0,91808.0,0.001]
[1765197437566,0.00501052,91809.0,91808.0,0.21884593]
[1765197439555,0.30922494,91909.0,91833.0,0.21778505]
[1765197439556,0.01088838,91841.0,91833.0,0.21778505]
[1765197439755,0.21777294,91839.0,91834.0,0.21778426]
[1765197439965,0.22866195,91839.0,91836.0,0.01088897]
[1765197440171,0.22866195,91839.0,91834.0,0.01161]
[1765197440172,0.22866604,91837.0,91834.0,0.01161]
[1765197440383,0.22866368,91838.0,91834.0,0.24028337]
[1765197440593,0.22866195,91839.0,91836.0,0.22866845]
[1765197440594,0.22866252,91839.0,91836.0,0.22866845]
[1765197440801,0.22866252,91839.0,91837.0,0.21777711]
[1765197441006,0.22866252,91839.0,91836.0,0.22873214]
[1765197441222,0.21777714,91837.0,91836.0,6.369e-05]
[1765197441429,0.21777627,91838.0,91836.0,6.369e-05]
[1765197441607,0.21777714,91837.0,91836.0,6.369e-05]
[1765197442207,0.2336628,91839.0,91836.0,0.01095266]
[1765197442411,0.22866313,91839.0,91836.0,6.369e-05]
[1765197442678,0.005,91838.0,91836.0,0.21984314]
[1765197442897,0.22866313,91839.0,91836.0,6.369e-05]
[1765197443111,0.01088862,91839.0,91837.0,0.21777691]
[1765197443317,0.006,91837.0,91836.0,0.01295266]
[1765197444171,0.006,91837.0,91836.0,0.00206369]
[1765197444612,0.006,91837.0,91836.0,0.21784321]
[1765197444785,0.22866103,91839.0,91836.0,0.21784321]
[1765197444961,0.006,91838.0,91836.0,0.00206369]
[1765197445205,0.00081438,91837.0,91836.0,0.21784321]
[1765197445418,0.21859152,91837.0,91836.0,6.369e-05]
[1765197445621,0.00681438,91837.0,91836.0,0.00206369]
[1765197445822,0.00681438,91837.0,91836.0,6.369e-05]
[1765197445823,0.21859152,91837.0,91836.0,6.369e-05]
[1765197446272,0.21859152,91837.0,91836.0,0.00206369]
[1765197446273,0.28111451,91837.0,91836.0,0.00206369]
[1765197446389,0.28111451,91837.0,91836.0,6.369e-05]
[1765197446792,0.60111451,91837.0,91836.0,6.369e-05]
[1765197447012,0.6233105,91837.0,91836.0,6.369e-05]
[1765197447447,0.95643394,91837.0,91836.0,6.369e-05]
[1765197447979,0.96932576,91837.0,91836.0,6.369e-05]
[1765197448254,0.97532576,91837.0,91836.0,0.00206369]
[1765197448453,0.96932576,91837.0,91836.0,6.369e-05]
[1765197448814,0.97832576,91837.0,91836.0,0.00206369]
[1765197450529,0.88271496,91837.0,91836.0,0.00206369]
[1765197450744,0.56979152,91837.0,91836.0,0.00206369]
[1765197450947,0.63231451,91837.0,91836.0,0.00206369]
[1765197452778,0.64244695,91837.0,91836.0,0.00206369]
[1765197452978,0.66464294,91837.0,91836.0,0.00206369]
[1765197454819,0.96244695,91837.0,91836.0,0.00206369]
[1765197455028,0.98464294,91837.0,91836.0,0.00206369]
[1765197456315,0.96244695,91837.0,91836.0,0.00206369]
[1765197459382,0.98464294,91837.0,91836.0,0.00206369]
[1765197469680,0.96744294,91837.0,91836.0,0.00206369]
[1765197469825,0.98464294,91837.0,91836.0,0.00206369]
[1765197470889,0.94524695,91837.0,91836.0,0.00206369]
[1765197471190,0.96244695,91837.0,91836.0,0.00206369]
[1765197472578,0.98464294,91837.0,91836.0,0.00206369]
[1765197474219,1.00805233,91837.0,91836.0,0.00206369]
[1765197476685,0.98585634,91837.0,91836.0,0.00206369]
[1765197477776,0.66585634,91837.0,91836.0,0.00206369]
[1765197477955,0.64865634,91837.0,91836.0,0.00206369]
[1765197478153,0.66585634,91837.0,91836.0,0.00206369]
[1765197479761,0.68805233,91837.0,91836.0,0.00206369]
[1765197481837,1.00805233,91837.0,91836.0,0.00206369]
[1765197482592,1.00808978,91837.0,91836.0,0.00206369]
[1765197484108,1.00808977,91837.0,91836.0,0.00206369]
[1765197488707,0.98589378,91837.0,91836.0,0.00206369]
[1765197488907,1.00808977,91837.0,91836.0,0.00206369]
[1765197490015,0.66589378,91837.0,91836.0,0.00206369]
[1765197490602,0.64248439,91837.0,91836.0,0.00206369]
[1765197493563,0.66591916,91837.0,91836.0,0.00206369]
[1765197493991,0.21784831,91807.0,91805.0,0.05863056]
[1765197494175,0.01089253,91806.0,91805.0,0.0003897]
[1765197494409,0.21784867,91807.0,91805.0,0.0003897]
[1765197495462,0.001,91806.0,91805.0,0.0043897]
[1765197495865,0.001,91806.0,91805.0,0.0073897]
[1765197496280,0.001,91806.0,91805.0,0.0043897]
[1765197496589,0.21784867,91807.0,91805.0,0.0003897]
[1765197496959,0.22084867,91807.0,91805.0,0.0023897]
[1765197497313,0.21784867,91807.0,91805.0,0.0003897]
[1765197497492,0.21784867,91807.0,91805.0,0.0023897]
[1765197497703,0.004,91806.0,91805.0,0.0023897]
[1765197498360,0.01089229,91808.0,91805.0,0.0003897]
[1765197498559,0.22184857,91807.0,91805.0,0.0023897]
[1765197499152,0.004,91807.0,91805.0,0.22024233]
[1765197499389,0.004,91807.0,91805.0,0.0023897]
[1765197500014,0.22873844,91808.0,91805.0,0.0003897]
[1765197500162,0.004,91806.0,91805.0,0.0023897]
[1765197500368,0.21784835,91807.0,91805.0,0.0003897]
[1765197500699,0.22873844,91808.0,91805.0,0.0003897]
[1765197500906,0.004,91807.0,91805.0,0.0023897]
[1765197501103,0.21784886,91807.0,91805.0,0.0003897]
[1765197501480,0.004,91806.0,91805.0,0.0023897]
[1765197501676,0.21784886,91807.0,91805.0,0.0003897]
[1765197502288,0.01089146,91815.0,91807.0,0.22874049]
[1765197502492,0.22872826,91812.0,91808.0,0.01089229]
[1765197502690,0.22872826,91812.0,91807.0,0.01211]
[1765197502691,0.01089194,91811.0,91807.0,0.01211]
[1765197502896,0.21784196,91810.0,91807.0,0.01211]
[1765197503089,0.01089194,91811.0,91807.0,0.01211]
[1765197503295,0.01089194,91811.0,91808.0,0.02421]
[1765197503296,0.21784119,91810.0,91808.0,0.02421]
[1765197503568,0.21784581,91809.0,91807.0,0.01211]
[1765197503828,0.21784593,91808.0,91807.0,0.01211]
[1765197504182,0.21785068,91806.0,91805.0,0.0003897]
[1765197505336,0.21784866,91807.0,91805.0,0.0003897]
[1765197505493,0.21785068,91806.0,91805.0,0.0003897]
[1765197506235,0.21985068,91806.0,91805.0,0.0003897]
[1765197506618,0.21985068,91806.0,91805.0,0.0013897]
[1765197506994,0.21985068,91806.0,91805.0,0.0003897]
[1765197507462,0.21985068,91806.0,91805.0,0.0013897]
[1765197511577,0.21985068,91806.0,91805.0,0.0003897]
[1765197512055,0.21885068,91806.0,91805.0,0.0003897]
[1765197512560,0.003,91806.0,91805.0,0.0003897]
[1765197512943,0.22085068,91806.0,91805.0,0.0003897]
[1765197513288,0.21785068,91806.0,91805.0,0.0003897]
[1765197513453,0.21985068,91806.0,91805.0,0.0003897]
[1765197517302,0.002,91806.0,91805.0,0.21824275]
[1765197519322,0.002,91806.0,91805.0,0.0003897]
[1765197519473,0.002,91806.0,91805.0,0.0396897]
[1765197519678,0.002,91806.0,91805.0,0.25754275]
[1765197523337,0.002,91806.0,91805.0,0.27973475]
[1765197524323,0.002,91806.0,91805.0,0.25754275]
[1765197528344,0.002,91806.0,91805.0,0.21824275]
[1765197528585,0.002,91806.0,91805.0,0.0003897]
[1765197528951,0.002,91806.0,91805.0,0.21824275]
[1765197530991,0.002,91806.0,91805.0,0.0003897]
[1765197530992,0.30118653,91806.0,91805.0,0.0003897]
[1765197531906,0.63235378,91806.0,91805.0,0.0003897]
[1765197532111,0.63435378,91806.0,91805.0,0.0003897]
[1765197533136,0.63235378,91806.0,91805.0,0.0003897]
[1765197533352,0.63335378,91806.0,91805.0,0.0003897]
[1765197533554,0.63735378,91806.0,91805.0,0.0003897]
[1765197533768,0.63635378,91806.0,91805.0,0.0003897]
[1765197534185,0.63835378,91806.0,91805.0,0.0003897]
[1765197535233,0.66054977,91806.0,91805.0,0.0003897]
[1765197535806,0.63835378,91806.0,91805.0,0.0003897]
[1765197537398,0.69813671,91806.0,91805.0,0.0003897]
[1765197538583,1.01813671,91806.0,91805.0,0.0003897]
[1765197540296,0.21792664,91774.0,91773.0,0.00150561]
[1765197540496,0.28083856,91774.0,91773.0,0.00150561]
[1765197541596,0.28283856,91774.0,91773.0,0.00150561]
[1765197543836,0.06491192,91774.0,91773.0,0.00150561]
[1765197544037,0.28283856,91774.0,91773.0,0.00150561]
[1765197546514,0.06491192,91774.0,91773.0,0.00150561]
[1765197546712,0.28283856,91774.0,91773.0,0.00150561]
[1765197550894,0.06491192,91774.0,91773.0,0.23561463]
[1765197551055,0.06491192,91774.0,91773.0,0.25994463]
[1765197551243,0.00238893,91774.0,91773.0,0.25994463]
[1765197551665,0.00238893,91774.0,91773.0,0.28213663]
[1765197569934,0.00238893,91774.0,91773.0,0.25994463]
[1765197570253,0.00238893,91774.0,91773.0,0.28213663]
[1765197570659,0.00238893,91774.0,91773.0,0.25994463]
[1765197570875,0.00038893,91774.0,91773.0,0.28213663]
[1765197571080,0.00238893,91774.0,91773.0,0.28213663]
[1765197574220,0.00238893,91774.0,91773.0,0.34087729]
[1765197576277,0.00238893,91774.0,91773.0,0.29435529]
[1765197576406,0.00238893,91774.0,91773.0,0.31869529]
[1765197578600,0.00238893,91774.0,91773.0,0.25995463]
[1765197579340,0.00238893,91774.0,91773.0,0.21943463]
[1765197579741,0.00238893,91774.0,91773.0,0.00150561]
[1765197579941,0.28283856,91774.0,91773.0,0.00150561]
[1765197581075,0.34262149,91774.0,91773.0,0.00150561]
[1765197582850,1.00781748,91774.0,91773.0,0.00150561]
[1765197586176,0.98562149,91774.0,91773.0,0.00150561]
[1765197586390,1.00781748,91774.0,91773.0,0.00150561]
[1765197586599,0.98562149,91774.0,91773.0,0.00150561]
[1765197588402,0.60583856,91774.0,91773.0,0.00150561]
[1765197588603,0.62303856,91774.0,91773.0,0.00150561]
[1765197589076,0.30003856,91774.0,91773.0,0.00150561]
[1765197589852,0.28283856,91774.0,91773.0,0.00150561]
[1765197590702,0.28283856,91774.0,91773.0,0.25755463]
[1765197590703,0.00238893,91774.0,91773.0,0.25755463]
[1765197591549,0.00238893,91774.0,91773.0,0.00150561]
[1765197591775,0.22031557,91774.0,91773.0,0.00150561]
[1765197591986,0.22231557,91774.0,91773.0,0.00350561]
[1765197592208,0.21831557,91774.0,91773.0,0.00150561]
[1765197592424,0.22031557,91774.0,91773.0,0.00250561]
[1765197592860,0.21831557,91774.0,91773.0,0.00150561]
[1765197593051,0.28483856,91774.0,91773.0,0.00250561]
[1765197594318,0.60783856,91774.0,91773.0,0.00250561]
[1765197594746,0.92783856,91774.0,91773.0,0.00250561]
[1765197599254,0.21798019,91752.0,91750.0,0.0002]
[1765197599888,0.21798019,91752.0,91751.0,0.00064065]
[1765197600513,0.21998019,91752.0,91751.0,0.00064065]
[1765197601185,0.21998019,91752.0,91721.0,0.01090262]
[1765197601186,0.01090203,91726.0,91721.0,0.01090262]
[1765197601397,0.22893307,91730.0,91726.0,0.01090203]
[1765197601611,0.02810155,91730.0,91729.0,0.01151]
[1765197602055,0.01090155,91730.0,91729.0,0.01151]
[1765197602465,0.01129024,91730.0,91729.0,0.01151]
[1765197602785,0.00038869,91730.0,91729.0,0.01151]
[1765197602997,0.01090239,91723.0,91720.0,0.01090274]
[1765197603307,0.22894344,91726.0,91723.0,0.01090239]
[1765197603464,0.01090203,91726.0,91722.0,0.22895057]
[1765197603673,0.01090191,91727.0,91723.0,0.22894783]
[1765197603857,0.2289408,91727.0,91723.0,0.22894783]
[1765197604279,0.01090191,91727.0,91721.0,0.01151]
[1765197604452,0.22894487,91726.0,91723.0,0.01090239]
[1765197604655,0.22894487,91726.0,91723.0,0.22894932]
[1765197604656,0.01090203,91726.0,91723.0,0.22894932]
[1765197604998,0.01090191,91727.0,91721.0,0.01151]
[1765197605199,0.01090215,91725.0,91721.0,0.24046463]
[1765197605604,0.228949,91724.0,91721.0,0.02241262]
[1765197605820,0.22894611,91725.0,91722.0,0.22895197]
[1765197605994,0.2289483,91724.0,91721.0,0.01151]
[1765197606194,0.21804876,91723.0,91721.0,0.01151]
[1765197606393,0.2289483,91724.0,91721.0,0.01151]
[1765197606602,0.2289483,91724.0,91721.0,0.00414795]
[1765197606802,0.22894926,91724.0,91721.0,0.00414795]
[1765197607005,0.01090227,91724.0,91721.0,0.01505057]
[1765197607375,0.22894822,91724.0,91721.0,0.23310231]
[1765197607595,0.01090227,91724.0,91721.0,0.23310206]
[1765197607803,0.01090227,91724.0,91721.0,0.01505057]
[1765197608005,0.01090262,91721.0,91716.0,0.37663735]
[1765197608235,0.01090262,91721.0,91707.0,0.22959521]
[1765197608236,0.00099999,91700.0,91697.0,0.21810749]
[1765197608412,0.01190511,91700.0,91695.0,0.01090572]
[1765197608619,0.01190511,91700.0,91690.0,0.37663735]
[1765197608620,0.01724,91712.0,91707.0,0.01090429]
[1765197608823,0.21807017,91714.0,91709.0,0.22898515]